fUST/lending_fUST_20250411
["ID","MTS","AMOUNT","RATE_DAILY","PERIOD"]
[357697558,1744342231859,-500.0,0.00022813,2]
[357697559,1744342231869,-500.0,0.00022813,2]
[357697560,1744342231878,-500.0,0.00022813,2]
[357697561,1744342231887,-500.0,0.00022813,2]
[357697562,1744342231897,-500.0,0.00022813,2]
[357697563,1744342231907,-500.0,0.00022813,2]
[357697564,1744342231916,-500.0,0.00022813,2]
[357697565,1744342231925,-325.22746891,0.00022813,2]
[357697566,1744342231935,-500.0,0.00022813,2]
[357697567,1744342231945,-500.0,0.00022813,2]
[357697568,1744342231955,-500.0,0.00022813,2]
[357697569,1744342231965,-500.0,0.00022813,2]
[357697570,1744342231975,-500.0,0.00022813,2]
[357697571,1744342231984,-500.0,0.00022813,2]
[357697572,1744342231994,-500.0,0.00022813,2]
[357697573,1744342232004,-500.0,0.00022813,2]
[357697574,1744342232013,-500.0,0.00022813,2]
[357697575,1744342232023,-500.0,0.00022813,2]
[357697576,1744342232032,-500.0,0.00022813,2]
[357697577,1744342232043,-500.0,0.00022813,2]
[357697578,1744342232053,-312.66168235,0.00022813,2]
[357697579,1744342232062,-500.0,0.00022813,2]
[357697580,1744342232072,-500.0,0.00022813,2]
[357697581,1744342232082,-500.0,0.00022813,2]
[357697582,1744342232091,-500.0,0.00022813,2]
[357697583,1744342232101,-500.0,0.00022813,2]
[357697584,1744342232113,-500.0,0.00022813,2]
[357697585,1744342232122,-500.0,0.00022813,2]
[357697586,1744342232131,-500.0,0.00022813,2]
[357697587,1744342232141,-500.0,0.00022813,2]
[357697588,1744342232150,-500.0,0.00022813,2]
[357697589,1744342232160,-10211.3794252,0.00022888,2]
[357697590,1744342232169,-161.31703264,0.00022888,3]
[357697591,1744342232179,-22022.62412513,0.00022888,2]
[357697592,1744342232191,-2877.37587487,0.00022888,2]
[357697593,1744342232200,-424.48204765,0.000229,4]
[357697594,1744342232210,-342.9067136,0.00022915,2]
[357697595,1744342232219,-506.61921117,0.00023029,2]
[357697596,1744342232229,-502.01965669,0.0002303,2]
[357697597,1744342232238,-503.36401089,0.000233,2]
[357697598,1744342232247,-504.04369442,0.000233,2]
[357697599,1744342232256,-511.19696086,0.000233,2]
[357697600,1744342232266,-152.42694936,0.000233,2]
[357697601,1744342232275,-504.94109994,0.000233,2]
[357697602,1744342232285,-502.8956947,0.000233,2]
[357697603,1744342232294,-501.29720727,0.000233,2]
[357697604,1744342232304,-503.70719436,0.000233,2]
[357697605,1744342232314,-455.99129533,0.000233,2]
[357697606,1744342232323,-502.50184295,0.000233,2]
[357697607,1744342232333,-504.54061134,0.000233,2]
[357697608,1744342232343,-502.73609147,0.000233,2]
[357697609,1744342232353,-505.9831797,0.00023411,2]
[357697610,1744342232362,-504.43068904,0.00023411,2]
[357697611,1744342232371,-513.03101099,0.00023411,2]
[357697612,1744342232381,-504.3114079,0.0002375,2]
[357697613,1744342232390,-503.76008887,0.0002375,2]
[357697614,1744342232400,-167.52056494,0.0002375,2]
[357697615,1744342232409,-500.0,0.0002375,2]
[357697616,1744342232419,-503.94791969,0.00023775,2]
[357697617,1744342232428,-500.0,0.00023843,2]
[357697618,1744342232438,-1000.0,0.00024298,2]
[357697619,1744342232447,-15097.4925955,0.00024658,2]
[357697620,1744342232457,-420.0,0.00024768,2]
[357697621,1744342232467,-500.0,0.000248,2]
[357697622,1744342232476,-1500.0,0.00024846,2]
[357697623,1744342232485,-2000.0,0.00025394,2]
[357697624,1744342232495,-1391.94387141,0.00025668,2]
[357697625,1744342232504,-36770.04799574,0.00026,30]
[357697626,1744342232514,-587.0,0.00026893,2]
[357697627,1744342232523,-500.0,0.00027397,2]
[357697628,1744342232532,-500.0,0.00027397,2]
[357697629,1744342232542,-500.0,0.00027397,2]
[357697630,1744342232551,-500.0,0.00027397,2]
[357697631,1744342232561,-500.0,0.00027397,2]
[357697632,1744342232570,-500.0,0.00027397,2]
[357697633,1744342232579,-599.0,0.00027397,2]
[357697634,1744342232588,-151.7749984,0.00027397,2]
[357697635,1744342232598,-150.55426524,0.00027397,2]
[357697636,1744342232607,-150.21475287,0.00027397,2]
[357697637,1744342232617,-500.0,0.00027397,2]
[357697638,1744342232627,-500.59751477,0.00027397,2]
[357697639,1744342232637,-361.47624704,0.0003,100]
[357697640,1744342232647,-2402.0017406,0.0003,7]
[357697641,1744342232660,-2300.6103723,0.00032785,2]
[357697642,1744342232671,-500.0,0.0003526,120]
[357697643,1744342232681,-204.603,0.00039028,53]
[357697644,1744342232691,-502.23317317,0.00039698,5]
[357697645,1744342232701,-502.7483311,0.00039698,5]
[357697646,1744342232710,-153.7457938,0.00039698,5]
[357697647,1744342232721,-192.15977811,0.00039698,5]
[357697648,1744342232731,-1499.10643267,0.00042,2]
[357697649,1744342232741,-2525.0,0.00043,120]
[357697650,1744342232751,-308.4835268,0.00043135,30]
[357697651,1744342232760,-2262.909,0.00043573,2]
[357697652,1744342232770,-402.0,0.00043573,2]
[357697653,1744342232780,-184.29,0.00043836,30]
[357697654,1744342232789,-153.8726028,0.0004385,2]
[357697655,1744342232799,-24437.62,0.0004387,10]
[357697656,1744342232809,-29325.15,0.0004388,10]
[357697657,1744342232819,-35190.18,0.0004389,10]
[357697658,1744342232828,-42228.21,0.000439,10]
[357697659,1744342232838,-119284.840705,0.0004391,3]
[357697660,1744342232847,-1544.14319022,0.0004391,3]
[357697661,1744342232857,-101879.95523257,0.0004392,3]
[357697680,1744342237904,-17404.88547243,0.0004392,3]
[357697682,1744342237914,-1544.14319022,0.0004392,3]
[357697685,1744342237924,-119284.840705,0.0004393,3]
[357697687,1744342237933,-1544.14319022,0.0004393,3]
[357697689,1744342237943,-267.923953,0.0004398,120]
[357697691,1744342237952,-267.923953,0.0004398,120]
[357697693,1744342237962,-151.0,0.0004398,120]
[357697695,1744342237971,-151.0,0.0004398,120]
[357697697,1744342237981,-267.923953,0.0004399,120]
[357697699,1744342237990,-267.923953,0.0004399,120]
[357697701,1744342238000,-151.0,0.0004399,2]
[357697703,1744342238009,-119284.840705,0.0004399,3]
[357697705,1744342238019,-1544.14319022,0.0004399,3]
[357697707,1744342238028,-151.0,0.0004399,120]
[357697709,1744342238038,-151.0,0.0004399,120]
[357697711,1744342238047,-2649.91580011,0.00044,30]
[357697713,1744342238056,-500.0,0.00044,15]
[357697715,1744342238066,-500.0,0.00044,15]
[357697717,1744342238075,-500.0,0.00044,15]
[357697719,1744342238085,-1155.20137496,0.00044,15]
[357697721,1744342238094,-2000.0,0.00044,15]
[357697723,1744342238103,-2000.0,0.00044,15]
[357697725,1744342238113,-2000.0,0.00044,15]
[357697728,1744342238122,-2000.0,0.00044,15]
[357697731,1744342238132,-2000.0,0.00044,15]
[357697734,1744342238141,-2000.0,0.00044,15]
[357697737,1744342238150,-2000.0,0.00044,15]
[357697740,1744342238161,-2000.0,0.00044,15]
[357697742,1744342238170,-3042.53978514,0.00044,120]
[357697744,1744342238179,-313.51,0.00044,30]
[357697746,1744342238189,-191.56238206,0.00044,15]
[357697748,1744342238198,-153.8726028,0.00044022,2]
[357697750,1744342238208,-153.8726028,0.00044194,2]
[357697752,1744342238218,-181061.82052743,0.00044201,2]
[357697754,1744342238227,-153.8726028,0.00044366,2]
[357697756,1744342238237,-153.8726028,0.00044538,2]
[357697758,1744342238247,-151.0,0.00044578,120]
[357697760,1744342238257,-151.0,0.00044588,120]
[357697762,1744342238266,-151.0,0.00044588,120]
[357697764,1744342238276,-151.0,0.00044588,120]
[357697766,1744342238285,-267.923953,0.00044588,120]
[357697768,1744342238295,-267.923953,0.00044588,120]
[357697770,1744342238305,-151.0,0.00044588,120]
[357697772,1744342238314,-151.0,0.00044588,120]
[357697774,1744342238323,-151.0,0.00044588,2]
[357697776,1744342238333,-151.0,0.00044588,2]
[357697779,1744342238343,-166.300576,0.00044588,120]
[357697781,1744342238352,-151.0,0.00044588,120]
[357697783,1744342238361,-158.164129,0.00044588,120]
[357697785,1744342238370,-151.0,0.00044598,120]
[357697787,1744342238380,-151.0,0.00044598,120]
[357697789,1744342238389,-151.0,0.00044598,120]
[357697791,1744342238399,-151.0,0.00044598,120]
[357697793,1744342238408,-151.0,0.00044598,120]
[357697795,1744342238418,-151.0,0.00044598,120]
[357697797,1744342238427,-153.439971,0.00044608,120]
[357697799,1744342238437,-151.0,0.00044608,120]
[357697801,1744342238447,-193.381711,0.00044608,120]
[357697803,1744342238456,-151.0,0.00044608,120]
[357697811,1744342238543,-151.0,0.00044618,120]
[357697812,1744342238567,-151.0,0.00044618,120]
[357697813,1744342238577,-486.95008466,0.00044629,15]
[357697814,1744342238586,-1007.727254,0.00044629,2]
[357697815,1744342238597,-12353.1455218,0.00044638,3]
[357697816,1744342238606,-151.0,0.00044638,120]
[357697817,1744342238621,-151.0,0.00044638,120]
[357697818,1744342238631,-151.0,0.00044638,120]
[357697819,1744342238640,-267.923953,0.00044638,120]
[357697820,1744342238651,-267.923953,0.00044638,120]
[357697821,1744342238664,-151.0,0.00044638,120]
[357697822,1744342238674,-151.0,0.00044638,120]
[357697823,1744342238683,-151.0,0.00044638,2]
[357697824,1744342238694,-336748.65505164,0.00044648,2]
[357698042,1744342242837,-500.0,0.00027397,2]
[357698043,1744342242847,-500.0,0.00027397,2]
[357698044,1744342242857,-500.0,0.00027397,2]
[357698045,1744342242868,-500.0,0.00027397,2]
[357698046,1744342242878,-500.0,0.00027397,2]
[357698047,1744342242890,-500.0,0.00027397,2]
[357698049,1744342242899,-148.63264059,0.00027397,2]
[357698127,1744343431924,-250.0,0.00022694,2]
[357698129,1744343431934,-250.0,0.00022695,2]
[357698131,1744343431944,-258.35860766,0.0002279,2]
[357698133,1744343431954,-500.0,0.0002279,2]
[357698135,1744343431964,-251.54376238,0.0002279,2]
[357698137,1744343431977,-248.45623762,0.0002279,2]
[357698139,1744343431986,-531.26616823,0.0002279,2]
[357698141,1744343431996,-444.5,0.00024566,15]
[357698143,1744343432006,-164.92,0.00024845,2]
[357698145,1744343432015,-500.0,0.000251,2]
[357698148,1744343432030,-312.81569512,0.000251,2]
[357698150,1744343432040,-434.80079608,0.000251,2]
[357698153,1744343432050,-164.92,0.00026215,2]
[357698155,1744343432059,-410.33264611,0.000269,7]
[357698172,1744343432070,-157.0,0.00027397,2]
[357698174,1744343432216,-164.92,0.00027585,2]
[357698176,1744343432227,-164.92,0.00028955,2]
[357698178,1744343432237,-164.92,0.00030324,2]
[357698179,1744343432246,-164.92,0.00031694,2]
[357698180,1744343432256,-164.92,0.00033064,2]
[357698182,1744343432266,-164.92,0.00034434,2]
[357698184,1744343432277,-16.10730742,0.00035804,2]
[357698232,1744343446088,-170.14068536,0.00022789,2]
[357698233,1744343446098,-223.54090961,0.00031693,2]
[357698234,1744343446109,-148.81269258,0.00035804,2]
[357698235,1744343446118,-164.92,0.00037174,2]
[357698236,1744343446128,-164.92,0.00038544,2]
[357698237,1744343446138,-164.92,0.00039913,2]
[357698238,1744343446148,-164.92,0.00041283,120]
[357698239,1744343446158,-166.54324438,0.00042,120]
[357698275,1744344632038,-250.0,0.00022594,2]
[357698276,1744344632049,-250.0,0.00022594,2]
[357698277,1744344632059,-500.0,0.00022782,2]
[357698278,1744344632069,-355.03617622,0.00022782,2]
[357698279,1744344632081,-421.6099831,0.00034272,2]
[357698280,1744344632093,-238.953701,0.0003455,2]
[357698281,1744344632104,-396.65489123,0.000359,12]
[357698282,1744344632114,-309.0,0.00038163,2]
[357698283,1744344632127,-7141.84690374,0.00038164,2]
[357698284,1744344632140,-613.61712307,0.00038164,2]
[357698285,1744344632152,-161.31703264,0.00038164,3]
[357698286,1744344632163,-24900.0,0.00038164,2]
[357698287,1744344632175,-163.683,0.00039014,53]
[357698288,1744344632186,-500.0,0.000395,120]
[357698289,1744344632198,-500.0,0.000395,120]
[357698290,1744344632209,-341.16455562,0.0004,120]
[357698291,1744344632220,-501.0,0.0004,120]
[357698292,1744344632232,-157.0,0.00042,2]
[357698293,1744344632244,-200.0,0.00042,14]
[357698294,1744344632256,-2723.907,0.0004384,14]
[357698295,1744344632268,-186.66862856,0.00044376,2]
[357698296,1744344632280,-14142.14,0.00044435,10]
[357698297,1744344632292,-6533.38879986,0.00044435,10]
[357698298,1744344632311,-1167.09604684,0.00044435,10]
[357698310,1744344638410,-349.72650821,0.00038163,15]
[357698311,1744344638422,-9820.93,0.00044435,10]
[357698312,1744344638435,-80082.49062964,0.00044445,2]
[357698313,1744344638449,-744.01803144,0.00044445,2]
[357698343,1744344643335,-23668.50786185,0.00044445,2]
[357698344,1744344643351,-1322.87761158,0.00044445,2]
[357698349,1744344646517,-614.4244469,0.00044445,2]
[357698554,1744345832193,-207.66620135,0.00016,2]
[357698556,1744345832204,-881.85341002,0.00023,2]
[357698587,1744345838530,-244.80855575,0.00022999,2]
[357698588,1744345838541,-8027.0,0.00025205,2]
[357698589,1744345838550,-383.4330613,0.000259,6]
[357698590,1744345838560,-383.43306129,0.00026659,6]
[357698591,1744345838569,-383.43306129,0.00027417,7]
[357698592,1744345838579,-383.43306129,0.00028176,7]
[357698593,1744345838588,-383.43306129,0.00028934,8]
[357698594,1744345838598,-383.43306129,0.00029693,8]
[357698595,1744345838607,-1900.79081304,0.000299,2]
[357698596,1744345838616,-500.12285349,0.00029973,5]
[357698597,1744345838626,-500.0,0.00029973,5]
[357698598,1744345838635,-10862.77865448,0.0002999,2]
[357698636,1744345840612,-1400.71100295,0.0002999,2]
[357698693,1744347032389,-250.0,0.00023889,2]
[357698695,1744347032400,-196.275195,0.00023989,2]
[357698697,1744347032410,-980.85365777,0.000249,2]
[357698758,1744347044274,-407.10976273,0.000249,5]
[357698778,1744347451545,195.4406271,0.00025,120]
[357698791,1744348232650,-250.0,0.00023789,2]
[357698792,1744348232660,-139.81896244,0.00023966,2]
[357698793,1744348232707,-676.17658746,0.00023966,2]
[357698794,1744348232718,-803.724805,0.00023989,2]
[357698795,1744348232728,-171.36598902,0.00024889,2]
[357698796,1744348232737,-1165.26357096,0.00024889,2]
[357698993,1744349437934,-500.0,0.00022999,2]
[357698994,1744349437948,-500.0,0.00022999,2]
[357698995,1744349437959,-631.50211486,0.00022999,2]
[357698996,1744349437969,-500.0,0.00022999,2]
[357698997,1744349437978,-500.0,0.00022999,2]
[357698998,1744349437989,-500.0,0.00022999,2]
[357698999,1744349437999,-500.0,0.00022999,2]
[357699000,1744349438009,-500.0,0.00022999,2]
[357699001,1744349438019,-500.0,0.00022999,2]
[357699002,1744349438030,-500.0,0.00022999,2]
[357699003,1744349438040,-313.16041841,0.00022999,2]
[357699004,1744349438050,-500.0,0.00022999,2]
[357699005,1744349438060,-500.0,0.00022999,2]
[357699006,1744349438070,-500.0,0.00022999,2]
[357699007,1744349438084,-500.0,0.00022999,2]
[357699008,1744349438096,-500.0,0.00022999,2]
[357699009,1744349438106,-500.0,0.00022999,2]
[357699010,1744349438117,-500.0,0.00022999,2]
[357699011,1744349438126,-500.0,0.00022999,2]
[357699012,1744349438136,-500.0,0.00022999,2]
[357699014,1744349438146,-500.0,0.00022999,2]
[357699015,1744349438155,-500.0,0.00022999,2]
[357699016,1744349438165,-500.0,0.00022999,2]
[357699017,1744349438174,-500.0,0.00022999,2]
[357699018,1744349438183,-500.0,0.00022999,2]
[357699019,1744349438193,-500.0,0.00022999,2]
[357699020,1744349438202,-500.0,0.00022999,2]
[357699021,1744349438212,-300.0,0.00022999,2]
[357699022,1744349438221,-4309.3105942,0.00023,2]
[357699023,1744349438232,-227.95,0.000239,2]
[357699024,1744349438246,-475.38716788,0.000239,5]
[357699025,1744349438255,-151.0,0.00023951,7]
[357699026,1744349438265,-170.468343,0.00023951,7]
[357699027,1744349438274,-152.5692,0.00023953,7]
[357699028,1744349438284,-151.0,0.00023955,7]
[357699029,1744349438294,-151.0,0.00023955,7]
[357699030,1744349438303,-151.0,0.00023955,7]
[357699031,1744349438313,-151.0,0.00023955,7]
[357699032,1744349438322,-151.0,0.00023955,7]
[357699033,1744349438332,-151.0,0.00023955,7]
[357699034,1744349438342,-151.0,0.00023955,7]
[357699035,1744349438352,-254.698396,0.00023955,7]
[357699036,1744349438361,-151.0,0.00023955,2]
[357699037,1744349438371,-151.0,0.00023955,2]
[357699038,1744349438381,-151.0,0.00023955,2]
[357699039,1744349438391,-151.0,0.00023955,2]
[357699040,1744349438400,-175.329622,0.00023955,2]
[357699041,1744349438410,-296.907021,0.00023955,7]
[357699042,1744349438420,-160.754371,0.00023955,7]
[357699043,1744349438429,-160.754371,0.00023955,7]
[357699044,1744349438439,-160.754371,0.00023955,7]
[357699045,1744349438449,-160.754371,0.00023955,7]
[357699046,1744349438459,-160.754371,0.00023955,7]
[357699047,1744349438468,-160.754371,0.00023955,7]
[357699048,1744349438478,-160.754371,0.00023955,7]
[357699049,1744349438488,-160.754371,0.00023955,7]
[357699050,1744349438500,-160.754371,0.00023955,7]
[357699051,1744349438509,-160.754371,0.00023955,7]
[357699052,1744349438519,-157.01,0.00023955,2]
[357699053,1744349438528,-151.0,0.00023957,7]
[357699054,1744349438538,-151.0,0.00023959,7]
[357699055,1744349438547,-151.0,0.00023959,7]
[357699056,1744349438557,-151.0,0.00023959,7]
[357699057,1744349438567,-151.0,0.00023959,7]
[357699058,1744349438576,-151.0,0.00023961,7]
[357699059,1744349438585,-151.0,0.00023961,7]
[357699060,1744349438595,-160.754371,0.00023961,7]
[357699061,1744349438605,-160.754371,0.00023961,7]
[357699062,1744349438614,-2951.50566993,0.00023963,2]
[357699063,1744349438624,-151.0,0.00023963,7]
[357699064,1744349438633,-160.754371,0.00023963,7]
[357699065,1744349438643,-160.754371,0.00023963,7]
[357699066,1744349438653,-250.0,0.00024789,2]
[357699067,1744349438662,-151.0,0.00024889,7]
[357699068,1744349438672,-369.48,0.0002496,3]
[357699069,1744349438681,-160.754371,0.00024969,7]
[357699070,1744349438691,-160.754371,0.00024969,7]
[357699071,1744349438700,-47621.93276946,0.0002497,2]
[357699194,1744349443027,-252.76638399,0.00023955,7]
[357699223,1744349445963,-257.62638858,0.00023955,7]
[357699224,1744349445974,-7665.63214131,0.0002497,2]
[357699225,1744349446024,-5962.22641832,0.0002497,2]
[357699226,1744349446037,-1229.09910205,0.0002497,2]
[357699280,1744350632084,-300.0,0.00022785,2]
[357699281,1744350632094,-244.43258261,0.00022786,2]
[357699282,1744350632104,-500.0,0.00022786,2]
[357699283,1744350632114,-272.64695517,0.00022786,2]
[357699284,1744350632124,-500.0,0.00022786,2]
[357699285,1744350632133,-500.0,0.00022786,2]
[357699286,1744350632143,-500.0,0.00022786,2]
[357699287,1744350632153,-500.0,0.00022786,2]
[357699288,1744350632163,-500.0,0.00022786,2]
[357699289,1744350632175,-500.0,0.00022786,2]
[357699290,1744350632185,-500.0,0.00022786,2]
[357699291,1744350632195,-500.0,0.00022786,2]
[357699292,1744350632204,-500.0,0.00022786,2]
[357699293,1744350632214,-500.0,0.00022786,2]
[357699294,1744350632223,-101.05491532,0.00022786,2]
[357699324,1744350638117,-398.94508468,0.00022786,2]
[357699326,1744350638127,-257.7562706,0.00022786,2]
[357699343,1744350638275,-242.2437294,0.00022786,2]
[357699345,1744350638285,-408.23635048,0.00022786,2]
[357699347,1744350638295,-500.0,0.00022786,2]
[357699349,1744350638306,-500.0,0.00022786,2]
[357699351,1744350638319,-500.0,0.00022786,2]
[357699353,1744350638329,-314.63075838,0.00022786,2]
[357699355,1744350638340,-500.0,0.00022786,2]
[357699358,1744350638351,-500.0,0.00022786,2]
[357699361,1744350638360,-500.0,0.00022786,2]
[357699363,1744350638370,-500.0,0.00022786,2]
[357699365,1744350638379,-500.0,0.00022786,2]
[357699367,1744350638391,-500.0,0.00022786,2]
[357699369,1744350638400,-500.0,0.00022786,2]
[357699371,1744350638410,-500.0,0.00022786,2]
[357699373,1744350638419,-500.0,0.00022786,2]
[357699375,1744350638430,-500.0,0.00022786,2]
[357699377,1744350638439,-500.0,0.00022786,2]
[357699379,1744350638449,-500.0,0.00022786,2]
[357699381,1744350638458,-500.0,0.00022786,2]
[357699382,1744350638468,-500.0,0.00022786,2]
[357699383,1744350638477,-1106.29791963,0.00022786,2]
[357699385,1744350638487,-300.0,0.00022787,2]
[357699398,1744350638622,-286.72348215,0.00022787,2]
[357699400,1744350638632,-157.01,0.00022791,2]
[357699403,1744350638643,-2623.74444407,0.00022797,2]
[357699405,1744350638652,-264.222376,0.00022797,7]
[357699407,1744350638662,-151.0,0.00022797,7]
[357699409,1744350638671,-250.0,0.000229,2]
[357699411,1744350638682,-5895.99353656,0.000229,2]
[357699413,1744350638691,-151.0,0.000229,7]
[357699415,1744350638701,-151.0,0.000229,7]
[357699417,1744350638710,-478.08181482,0.000229,4]
[357699419,1744350638720,-2923.92846473,0.00023955,2]
[357699421,1744350638730,-151.0,0.00023955,7]
[357699423,1744350638740,-151.0,0.00023955,7]
[357699425,1744350638750,-151.0,0.00023955,7]
[357699427,1744350638759,-154.4,0.00023955,7]
[357699429,1744350638769,-1000.0,0.00023955,14]
[357699432,1744350638779,-1000.0,0.00023955,14]
[357699434,1744350638790,-1000.0,0.00023955,14]
[357699436,1744350638800,-1000.0,0.00023955,14]
[357699438,1744350638809,-1000.0,0.00023955,14]
[357699440,1744350638819,-1000.0,0.00023955,14]
[357699442,1744350638829,-1000.0,0.00023955,14]
[357699444,1744350638838,-1000.0,0.00023955,14]
[357699445,1744350638848,-1000.0,0.00023955,14]
[357699446,1744350638857,-1000.0,0.00023955,14]
[357699447,1744350638867,-1000.0,0.00023955,14]
[357699448,1744350638877,-1000.0,0.00023955,14]
[357699449,1744350638887,-1000.0,0.00023955,14]
[357699450,1744350638896,-1000.0,0.00023955,14]
[357699451,1744350638906,-1000.0,0.00023955,14]
[357699452,1744350638916,-1000.0,0.00023955,14]
[357699453,1744350638925,-1000.0,0.00023955,14]
[357699454,1744350638935,-1000.0,0.00023955,14]
[357699455,1744350638945,-1000.0,0.00023955,14]
[357699456,1744350638955,-1000.0,0.00023955,14]
[357699457,1744350638965,-1000.0,0.00023955,14]
[357699458,1744350638974,-1000.0,0.00023955,14]
[357699459,1744350638983,-1000.0,0.00023955,14]
[357699460,1744350638995,-1000.0,0.00023955,14]
[357699461,1744350639005,-1000.0,0.00023955,14]
[357699462,1744350639015,-1000.0,0.00023955,14]
[357699463,1744350639025,-1000.0,0.00023955,14]
[357699464,1744350639035,-1000.0,0.00023955,14]
[357699465,1744350639046,-1000.0,0.00023955,14]
[357699466,1744350639055,-1000.0,0.00023955,14]
[357699467,1744350639066,-1000.0,0.00023955,14]
[357699468,1744350639076,-1000.0,0.00023955,14]
[357699469,1744350639085,-1000.0,0.00023955,14]
[357699470,1744350639095,-1000.0,0.00023955,14]
[357699471,1744350639104,-1000.0,0.00023955,14]
[357699472,1744350639114,-1000.0,0.00023955,14]
[357699473,1744350639124,-1000.0,0.00023955,14]
[357699474,1744350639133,-1000.0,0.00023955,14]
[357699475,1744350639144,-1000.0,0.00023955,14]
[357699476,1744350639153,-1000.0,0.00023955,14]
[357699477,1744350639163,-1000.0,0.00023955,14]
[357699478,1744350639173,-1000.0,0.00023955,14]
[357699479,1744350639182,-1000.0,0.00023955,14]
[357699480,1744350639192,-1000.0,0.00023955,14]
[357699481,1744350639202,-1000.0,0.00023955,14]
[357699482,1744350639211,-1000.0,0.00023955,14]
[357699483,1744350639221,-1000.0,0.00023955,14]
[357699484,1744350639231,-1000.0,0.00023955,14]
[357699485,1744350639241,-1000.0,0.00023955,14]
[357699486,1744350639251,-1000.0,0.00023955,14]
[357699487,1744350639261,-1000.0,0.00023955,14]
[357699488,1744350639271,-1000.0,0.00023955,14]
[357699489,1744350639280,-1000.0,0.00023955,14]
[357699490,1744350639290,-1000.0,0.00023955,14]
[357699491,1744350639301,-1000.0,0.00023955,14]
[357699492,1744350639314,-1000.0,0.00023955,14]
[357699493,1744350639324,-1044.50877,0.00023955,14]
[357699494,1744350639335,-151.0,0.00023955,7]
[357699495,1744350639345,-190.017492,0.00023955,7]
[357699496,1744350639357,-509.19413083,0.00024155,2]
[357699497,1744350639367,-500.0,0.00024155,2]
[357699498,1744350639378,-628.17444275,0.000248,2]
[357699499,1744350639388,-209.62580749,0.00024853,2]
[357699500,1744350639399,-66762.29331488,0.000249,2]
[357699554,1744350643184,-560.21934862,0.000249,2]
[357699591,1744351832286,-250.0,0.00022685,2]
[357699593,1744351832297,-368.29230649,0.00022776,2]
[357699595,1744351832307,-500.0,0.00022776,2]
[357699597,1744351832317,-500.0,0.00022776,2]
[357699599,1744351832327,-378.69292783,0.00022776,2]
[357699601,1744351832337,-10211.39796502,0.00023941,2]
[357699604,1744351832353,-4652.28853948,0.00023941,2]
[357699739,1744351838379,-1907.6768882,0.00023941,2]
[357699741,1744351838389,-157.01,0.00023955,2]
[357699743,1744351838399,-1553.8706216,0.0002489,2]
[357699745,1744351838409,-6000.0,0.000249,2]
[357699747,1744351838419,-462.14575421,0.000249,5]
[357699749,1744351838428,-419.46366559,0.00024903,2]
[357699751,1744351838437,-160.0,0.00024903,2]
[357699753,1744351838447,-160.0,0.00024952,2]
[357699755,1744351838456,-500.68969478,0.00024973,2]
[357699757,1744351838467,-500.0,0.00024973,2]
[357699759,1744351838476,-151.0,0.00024975,2]
[357699761,1744351838486,-151.0,0.00024975,2]
[357699763,1744351838496,-151.0,0.00024975,2]
[357699765,1744351838505,-151.0,0.00024975,2]
[357699767,1744351838515,-175.12557697,0.00024975,2]
[357699769,1744351838526,-207.4,0.00024975,2]
[357699771,1744351838535,-209.62580749,0.00024977,2]
[357699773,1744351838545,-8114.72276154,0.0002499,2]
[357699869,1744351840453,-678.67393402,0.0002499,2]
[357700096,1744351843327,-403.005,0.00022776,2]